Cogmind - Beta 10.2 @@@ ROGUE MODE // 2020.11.13 @ 10:08:23 // Halloween2020/ForbiddenLore Player: AF_C2_5001 Result: Destroyed by Y-64 Sentinel with KE Penetrator Performance ------------- Evolutions (5) 2500 Regions Visited (13) 2600 Robots Destroyed (157) 785 Value Destroyed (6227) 6227 Prototype IDs (22) 440 Alien Tech Used (0) 0 Bonus (-176) -176 TOTAL SCORE: 12376 Bonus ------- High Alert Combat Kills 1964 Follower Combat Kills 1400 Friendly Fire -3540 Cogmind --------- Core Integrity 0/1000 Matter 268/300 Energy 322/600 System Corruption 12% Temperature Cool (9) Movement Walking (180) Ox2 Location -5/Extension Parts ------- > --- POWER (1) -------- (None) > --- PROPULSION (4) --- Carbon-fiber Leg Myomer Leg Compact Wheel > --- UTILITY (10) ----- Improved Heat Sink Advanced Heat Sink Large Storage Unit High-capacity Storage Unit High-capacity Storage Unit Energy Well Core Analyzer Improved Light Armor Plating > --- WEAPON (2) ------- Long-range Proton Cannon KE Penetrator > --- INVENTORY (26) --- Light Neutrino Core Flexi-carbon Leg Enhanced Flexi-carbon Leg Armored Wheel Advanced Heat Sink Large Storage Unit Large Storage Unit Large Storage Unit Large Storage Unit Gravity Neutralizing Apparatus Heavy Beamcaster Heavy Ion Cannon Plasma Cannon Plasma Cannon Plasma Cannon Gauss Rifle Gauss Rifle Gauss Rifle Gauss Rifle Heavy Proton Missile Launcher Mini Grenade Launcher Improved Remote Datajack Heavy Hammer Heavy Hammer Peak State ------------ > --- POWER ------------ Angular Momentum Engine > --- PROPULSION ------- Heavy Treads Carbon-fiber Leg Carbon-fiber Leg > --- UTILITY ---------- Advanced Heat Sink Large Storage Unit Large Storage Unit High-capacity Storage Unit High-capacity Storage Unit Gravity Neutralizing Apparatus Advanced Core Analyzer Improved Weapon Cycler > --- WEAPON ----------- Enhanced Coil Gun Enhanced Coil Gun > --- INVENTORY -------- Light Neutrino Core Medium Treads Enhanced Flexi-carbon Leg Advanced Heat Sink Large Storage Unit Large Storage Unit Large Storage Unit Large Storage Unit Energy Well Gravity Neutralizing Apparatus Improved Heavy Laser Improved Heavy Laser Improved Heavy Laser Heavy Ion Cannon Heavy Ion Cannon Heavy Ion Cannon Plasma Cannon Plasma Cannon Plasma Cannon Heavy Plasma Cannon Gauss Rifle Enhanced Coil Gun Heavy Flak Cannon Heavy Proton Missile Launcher Mini Grenade Launcher Improved Remote Datajack [Rating: 77] Favorites ----------- Power Reinforced Deuterium Engine Engine Reinforced Deuterium Engine Power Core Micro Fission Core Propulsion Carbon-fiber Leg Treads Improved Treads Leg Carbon-fiber Leg Wheel Compact Wheel Hover Unit Gravmag Array Utility Large Storage Unit Device Advanced Heat Sink Storage Large Storage Unit Processor Advanced Core Analyzer Hackware Advanced System Shield Protection Hardened Light Armor Plating Weapon Flak Cannon Energy Gun Force Rifle Energy Cannon Compact Ion Cannon Ballistic Gun Enhanced Coil Gun Ballistic Cannon Flak Cannon Launcher Mini Grenade Launcher Special Weapon Improved Remote Datajack Build | -11 -10 -10 -9 -8 -8 -7 -7 -7 -6 -6 -6 -5 -5 ------- Run | Scr Mat Min Mat Mat Sto Fac Was Fac Fac Was Fac Fac Ext Slots Evolved 10 | . . . 2 2 . 2 . . 2 . . 2 . Power . | . . . . . . . . . . . . . . Propulsion 2 | . . . 1 . . 1 . . . . . . . Utility 8 | . . . 1 2 . 1 . . 2 . . 2 . Weapon . | . . . . . . . . . . . . . . Parts Attached 197 | 6 4 4 8 11 24 4 2 6 22 16 7 54 29 Power 16 | 1 . . 1 1 2 2 . . 2 1 1 4 1 Engine 14 | 1 . . 1 1 2 1 . . 2 1 1 4 . Core 2 | . . . . . . 1 . . . . . . 1 Reactor . | . . . . . . . . . . . . . . Propulsion 56 | 2 . 2 3 2 7 . . 1 7 5 2 16 9 Treads 12 | . . . . . 5 . . 1 1 . . 3 2 Leg 38 | 2 . 2 3 2 2 . . . 6 5 2 11 3 Wheel 5 | . . . . . . . . . . . . 1 4 Hover 1 | . . . . . . . . . . . . 1 . Flight . | . . . . . . . . . . . . . . Utility 63 | 1 3 1 2 3 5 2 2 5 6 8 4 11 10 Device 12 | . 1 1 . . . . . . 2 1 1 3 3 Storage 17 | 1 1 . 1 . 2 . . . 2 2 3 4 1 Processor 9 | . 1 . . 1 . 1 . 4 . 1 . . 1 Hackware 2 | . . . . . . . 1 . . 1 . . . Protection 23 | . . . 1 2 3 1 1 1 2 3 . 4 5 Artifact . | . . . . . . . . . . . . . . Weapon 62 | 2 1 1 2 5 10 . . . 7 2 . 23 9 Energy Gun 16 | 2 1 1 2 2 . . . . 2 1 . 3 2 Energy Cannon 20 | . . . . 3 3 . . . 3 1 . 6 4 Ballistic Gun 12 | . . . . . 1 . . . 1 . . 8 2 Ballistic Cannon 8 | . . . . . 6 . . . . . . 2 . Launcher 4 | . . . . . . . . . . . . 4 . Special Weapon 2 | . . . . . . . . . 1 . . . 1 Impact Weapon . | . . . . . . . . . . . . . . Slashing Weapon . | . . . . . . . . . . . . . . Piercing Weapon . | . . . . . . . . . . . . . . Special Melee Weapon . | . . . . . . . . . . . . . . Unidentified Prototypes 10 | . . . 1 1 2 1 . . 1 . . 3 1 Parts Lost 78 | . 2 . 2 3 2 2 3 . 8 . . 42 14 Power 9 | . . . 1 1 . . . . 1 . . 5 1 Propulsion 24 | . . . . 1 1 1 . . 2 . . 13 6 Utility 25 | . 1 . . . 1 1 2 . 2 . . 13 5 Weapon 20 | . 1 . 1 1 . . 1 . 3 . . 11 2 Highest Loss Streak 10 | . 2 . 1 2 1 2 3 . 6 . . 10 6 Average Slot Usage (%) 84 | . 92 100 87 94 91 85 59 29 87 57 100 83 87 Engine 5 | . 14 14 10 9 8 7 4 . 4 4 6 4 . Treads 3 | . . . . . 8 17 9 . 11 . . . 3 Leg 16 | . 28 28 30 24 18 . . . 10 17 26 16 5 Wheel 1 | . . . . . . . . . . . . . 8 Device 4 | . 4 14 9 . . . . . 6 4 6 6 4 Storage 15 | . 14 14 12 18 18 15 10 . 4 8 13 19 27 Processor 8 | . 2 . . 7 9 14 11 21 25 5 6 4 4 Hackware 2 | . . . . . . . 1 7 6 3 6 3 . Protection 10 | . . . 1 16 11 15 9 . 4 5 20 11 12 Energy Gun 4 | . 28 28 22 7 . . . . 1 1 6 1 3 Energy Cannon 3 | . . . . 9 3 . . . 5 4 6 3 4 Ballistic Gun 1 | . . . . . . . . . 2 . . 4 2 Ballistic Cannon 2 | . . . . . 14 15 10 . . . . . . Naked Turns 148 | . . . . . . . 3 . . 145 . . . Heaviest Build 143 | 12 28 28 44 61 99 94 94 . 58 62 104 140 143 Greatest Support 98 | 20 20 20 30 30 69 69 46 3 50 60 65 98 60 Greatest Overweight (x) 38 | . 1 1 1 2 7 2 2 . 3 1 1 38 8 Average Overweight (x) 1 | . . 1 . 1 1 1 . . . . . 1 3 Largest Inventory Capacity 32 | 6 12 10 16 16 20 20 20 4 10 16 20 32 32 Average Capacity 18 | 5 9 10 10 16 18 20 14 4 8 11 17 27 31 Most Carried 32 | 2 8 10 16 16 20 20 20 4 10 16 20 31 32 Average Carried 17 | 1 5 9 10 15 17 19 14 3 6 9 17 24 29 Final Capacity 32 | 6 10 10 16 16 20 20 4 4 10 16 20 32 26 Final Carried 24 | 2 8 10 16 16 20 20 4 4 9 16 20 24 24 Class Distribution -------------------- 55% | Scavenger-Mutant 22% | Mutant 21% | Hauler-Mutant Dominant Class ---------------- Mutant | -10/Materials Mutant | -10/Mines Scavenger-Mutant | -9/Materials Mutant | -8/Materials Hauler-Mutant | -8/Storage Hauler-Mutant | -7/Factory Hauler-Mutant | -7/Waste Mutant | -7/Factory Scavenger-Mutant | -6/Factory Scavenger-Mutant | -6/Waste Scavenger-Mutant | -6/Factory Scavenger-Mutant | -5/Factory Scavenger-Mutant | -5/Extension Resources | -11 -10 -10 -9 -8 -8 -7 -7 -7 -6 -6 -6 -5 -5 ----------- Run | Scr Mat Min Mat Mat Sto Fac Was Fac Fac Was Fac Fac Ext Matter Collected 3799 | 234 56 40 85 110 928 . . . 547 150 60 1187 402 Remotely . | . . . . . . . . . . . . . . Salvage Created 7166 | . 63 117 247 280 1153 36 225 . 1040 . 259 2981 765 Parts 320 | . 5 6 24 19 62 3 . . 36 . 11 120 34 Haulers Intercepted 10 | . . . . 1 5 1 . . . . 1 2 . Recyclers Shooed 7 | . . . . . 1 . . . . . . 5 1 Parts Field Recycled . | . . . . . . . . . . . . . . Retrieved Matter . | . . . . . . . . . . . . . . Parts Self-Destructed . | . . . . . . . . . . . . . . Prevented . | . . . . . . . . . . . . . . Kills | -11 -10 -10 -9 -8 -8 -7 -7 -7 -6 -6 -6 -5 -5 ------- Run | Scr Mat Min Mat Mat Sto Fac Was Fac Fac Was Fac Fac Ext Combat Hostiles Destroyed 115 | . 2 4 9 10 20 . 1 . 17 . 3 43 6 Melee 1 | . . . . . 1 . . . . . . . . Guns 50 | . 2 4 9 5 . . . . 4 . 2 21 3 Cannons 47 | . . . . 4 19 . 1 . 12 . 1 8 2 AOE 14 | . . . . 1 . . . . . . . 13 . Classes Destroyed 18 | . 1 . 4 1 7 . 1 . 1 . . 3 . Worker 7 | . . . . . 2 . . . . . . 5 . Builder 10 | . . . . . . . . . . . . 8 2 Tunneler 1 | . . . . . . . . . 1 . . . . Hauler 10 | . . . . 1 5 1 . . . . 1 2 . Recycler 10 | . . . . . 3 . . . . . . 5 2 Mechanic 1 | . . . 1 . . . . . . . . . . Operator 1 | . . . . . 1 . . . . . . . . Watcher 1 | . . . . . 1 . . . . . . . . Swarmer 13 | . . . 4 8 . . . . . . . 1 . Saboteur 1 | . . . . . . . . . . . . 1 . Grunt 56 | . 2 4 3 . 7 . . . 16 . 3 21 . Brawler 3 | . . . 1 . . . . . . . . 2 . Duelist 6 | . . . . . 3 . . . . . . 3 . Protector 3 | . . . . . 2 . . . . . . 1 . Sentry 20 | . . . 1 2 7 . . . 1 . . 5 4 Hunter 7 | . . . . . 1 . . . . . . 4 2 Programmer 5 | . . . . . . . . . . . . 5 . Compactor 1 | . . . . . . . 1 . . . . . . Best Kill Streak 12 | . 2 2 4 5 9 1 1 . 6 . 2 12 2 Combat Bots Only 9 | . 2 2 4 5 9 . 1 . 5 . 2 7 1 Max Kills in Single Turn 5 | . 1 2 2 2 2 1 1 . 2 . 1 5 1 Gunslinging . | . . . . . . . . . . . . . . Exploded 3 | . . . . 1 . . . . . . . 3 . Melee 1 | . . . . . 1 . . . . . . . . Uniques/NPCs Destroyed 1 | . . . . . . . . . . . . . 1 A7 (-5/Extension) Combat | -11 -10 -10 -9 -8 -8 -7 -7 -7 -6 -6 -6 -5 -5 -------- Run | Scr Mat Min Mat Mat Sto Fac Was Fac Fac Was Fac Fac Ext Damage Taken 13624 | . 221 130 311 485 1050 211 184 . 1508 39 288 6865 2332 Core 1570 | . 44 24 62 52 83 . 102 . 128 39 33 795 208 Absorbed by Shields 18 | . . . . . . . . . . . . . 18 Core Remaining (%) 82 | 100 . 72 84 . 75 . . 85 . . 76 . . Volleys Fired 449 | . 10 8 21 28 63 3 7 . 66 6 16 149 72 Largest 2 | . 2 2 2 2 2 2 2 . 2 2 2 2 2 Hottest 178 | . 105 130 130 128 128 88 88 . 159 159 170 178 171 Shots Fired 829 | . 20 16 42 42 125 6 15 . 115 11 32 269 136 Gun 396 | . 20 16 42 23 . . . . 49 5 16 145 80 Cannon 413 | . . . . 19 125 6 15 . 66 6 16 105 55 Launcher 19 | . . . . . . . . . . . . 19 . Special 1 | . . . . . . . . . . . . . 1 Kinetic 324 | . . . . . 117 6 15 . 25 . . 145 16 Thermal 446 | . 20 16 39 31 8 . . . 90 11 32 99 100 Explosive 19 | . . . . . . . . . . . . 19 . Electromagnetic 39 | . . . 3 11 . . . . . . . 6 19 Robot Hit Streak 31 | . 4 16 15 9 14 6 18 . 31 . 15 23 12 Robot Miss Streak 11 | . 3 3 5 7 8 4 2 . 2 . 2 11 5 Penetration Max 1 | . . . . . . . . . . . . 1 1 Secondary Targets 2 | . . 1 1 . . . . . . . . . . Max Gunslinging Chain 1 | . . 1 1 . . . . . . . . . . Shots Hit Robots 623 | . 10 15 40 30 109 6 14 . 100 . 23 190 86 Core Hits 489 | . 4 25 33 22 109 3 19 . 40 . 10 192 32 Critical Hits 25 | . . . . 1 1 . . . 4 . . 16 3 Critical Kills 10 | . . . . 1 . . . . 2 . . 7 . Critical Parts Destroyed 13 | . . . . . 1 . . . 2 . . 7 3 Melee Attacks . | . . . . . . . . . . . . . . Impact . | . . . . . . . . . . . . . . Slashing . | . . . . . . . . . . . . . . Piercing . | . . . . . . . . . . . . . . Sneak Attacks . | . . . . . . . . . . . . . . Combat Hostiles . | . . . . . . . . . . . . . . Follow-up Attacks . | . . . . . . . . . . . . . . Damage Inflicted 18476 | . 111 206 449 473 1835 51 541 . 2469 . 625 9044 2672 Guns 6961 | . 111 206 449 243 . . . . 825 . 339 3291 1497 Cannons 7577 | . . . . 175 1814 51 541 . 1622 . 278 1970 1126 Explosions 3822 | . . . . 55 . . . . . . . 3718 49 Melee . | . . . . . . . . . . . . . . Ramming 116 | . . . . . 21 . . . 22 . 8 65 . Kinetic 6606 | . . . . . 1726 51 541 . 419 . . 3464 405 Thermal 7974 | . 111 206 390 322 88 . . . 2028 . 617 2367 1845 Explosive 3060 | . . . . . . . . . . . . 3060 . Electromagnetic 720 | . . . 59 151 . . . . . . . 88 422 Impact . | . . . . . . . . . . . . . . Slashing . | . . . . . . . . . . . . . . Piercing . | . . . . . . . . . . . . . . Highest Corruption 23 | . . . 3 . . 4 22 23 1 1 2 11 12 Average Corruption 5 | . . . 3 . . 4 11 22 1 1 1 5 12 Corruption Purged . | . . . . . . . . . . . . . . Effects 107 | . . . 3 . . 1 8 12 1 2 8 17 55 Message Errors 15 | . . . . . . . 1 1 . 1 2 1 9 Matter Fused 13 | . . . 1 . . . 1 3 . . . 2 6 Heat Flow Errors 8 | . . . . . . . . 1 . . 2 4 1 Energy Discharges 16 | . . . 1 . . 1 1 1 . 1 1 2 8 Parts Rejected 1 | . . . . . . . 1 . . . . . . Data Loss (minor) 13 | . . . 1 . . . 1 1 . . 2 3 5 Data Loss (major) 1 | . . . . . . . . . . . . . 1 Misfires 2 | . . . . . . . 1 . . . . 1 . Alerts 2 | . . . . . . . . . . . . . 2 Misdirections 9 | . . . . . . . 2 5 . . . 1 1 Targeting Errors 24 | . . . . . . . . . 1 . 1 3 19 Weapon Failures 3 | . . . . . . . . . . . . . 3 Overload Shots . | . . . . . . . . . . . . . . Overflow Damage 448 | . . . . . . 14 . . 33 . 25 366 10 Projectiles 116 | . . . . . . . . . 33 . 25 48 10 Explosions 332 | . . . . . . 14 . . . . . 318 . Melee . | . . . . . . . . . . . . . . Knockbacks 64 | . . . . . 36 . . . 1 . . 27 . Impact 2 | . . . . . . . . . 1 . . 1 . Kinetic 58 | . . . . . 33 . . . . . . 25 . Secondary 4 | . . . . . 3 . . . . . . 1 . Self-Inflicted Damage 1027 | . . . . 34 . 211 . . . . . 771 11 Shots 18 | . . . . 1 . 3 . . . . . 13 1 Rammed 8 | . . . . . 3 . . . 3 . . 2 . Targets Rammed 18 | . . . . . 4 . . . 4 . 2 8 . Kicked 9 | . . . . . . . . . 1 . 2 6 . Crushed 1 | . . . . . 1 . . . . . . . . Highest Temperature 429 | . 369 253 107 303 306 30 35 193 91 . 349 429 341 Average Temperature 96 | . 206 110 41 156 88 17 22 108 29 . 115 113 63 Received Heat Transfer 2687 | . 120 78 60 45 369 . . . 576 . 36 1089 314 Effects 10 | . 1 3 . 3 1 . . . . . . 2 . Energy Bleed 4 | . 1 . . 1 1 . . . . . . 1 . Interference 6 | . . 3 . 2 . . . . . . . 1 . Siege Activations . | . . . . . . . . . . . . . . Robots Corrupted 1 | . . . . . . . . . . . . . 1 Combat Hostiles 1 | . . . . . . . . . . . . . 1 Parts Fried 2 | . . . . . . . . . . . . . 2 Impact Corruptions . | . . . . . . . . . . . . . . Robots Melted 2 | . . . . . . . . . 1 . . 1 . Combat Hostiles 2 | . . . . . . . . . 1 . . 1 . Parts Melted 24 | . . . . 1 . . . . 9 . 2 8 4 Heat Transferred 10312 | . 283 265 470 456 148 . . . 3335 . 888 2913 1554 Parts Sabotaged . | . . . . . . . . . . . . . . Parts Stolen . | . . . . . . . . . . . . . . Parts Stripped . | . . . . . . . . . . . . . . Power Chain Reactions 2 | . . . . 1 . . . . . . . . 1 Missiles Intercepted . | . . . . . . . . . . . . . . Alert | -11 -10 -10 -9 -8 -8 -7 -7 -7 -6 -6 -6 -5 -5 ------- Run | Scr Mat Min Mat Mat Sto Fac Was Fac Fac Was Fac Fac Ext Peak Influence 1744 | . 35 107 275 366 440 221 77 43 260 98 1287 1744 1001 Initial 854 | . . 7 41 115 91 149 77 43 21 38 . 605 854 Average 489 | . 11 56 179 264 258 199 67 43 102 37 819 1034 873 Maximum Alert Level 5 | . . . 1 1 2 1 . . 1 . 4 5 3 Low Security (%) 36 | 100 100 100 40 12 38 29 100 100 80 100 2 . . Level 1 20 | . . . 59 87 49 70 . . 19 . 12 . . Level 2 11 | . . . . . 12 . . . . . 25 28 4 Level 3 20 | . . . . . . . . . . . 19 34 95 Level 4 7 | . . . . . . . . . . . 39 15 . Level 5 4 | . . . . . . . . . . . . 21 . High Security . | . . . . . . . . . . . . . . Max Security . | . . . . . . . . . . . . . . Squads Dispatched 38 | . 1 . 1 . 3 1 . 1 3 . 6 19 3 Investigation 7 | . 1 . . . . 1 . 1 . . 1 1 2 Extermination 7 | . . . . . . . . . 1 . 2 4 . Reinforcement 12 | . . . 1 . . . . . 2 . 3 6 . Assault 8 | . . . . . 2 . . . . . . 5 1 Garrison 4 | . . . . . 1 . . . . . . 3 . Intercept . | . . . . . . . . . . . . . . Construction Impeded 3 | . . . . . . . . . . . 2 1 . Haulers Reinforced 3 | . . . . . . . . . . . . 3 . Stealth | -11 -10 -10 -9 -8 -8 -7 -7 -7 -6 -6 -6 -5 -5 --------- Run | Scr Mat Min Mat Mat Sto Fac Was Fac Fac Was Fac Fac Ext Distress Signals 11 | . 1 . . . 2 . . . 3 . . 2 3 Communications Jammed . | . . . . . . . . . . . . . . Distress Signals . | . . . . . . . . . . . . . . Times Spotted 204 | . 4 4 14 11 29 . 5 . 28 7 14 72 16 Peak Tracking Total 12 | . 3 2 5 5 12 . 4 . 10 6 4 8 5 Tactical Retreats 11 | . . . . 1 . . . . 3 1 . 6 . Traps | -11 -10 -10 -9 -8 -8 -7 -7 -7 -6 -6 -6 -5 -5 ------- Run | Scr Mat Min Mat Mat Sto Fac Was Fac Fac Was Fac Fac Ext Traps Triggered 5 | . . . . . 1 2 . . 1 . . . 1 Indirectly . | . . . . . . . . . . . . . . Trap Hack Attempts . | . . . . . . . . . . . . . . Triggered . | . . . . . . . . . . . . . . Disarmed . | . . . . . . . . . . . . . . Reprogrammed . | . . . . . . . . . . . . . . Reused . | . . . . . . . . . . . . . . Traps Extracted . | . . . . . . . . . . . . . . Installed . | . . . . . . . . . . . . . . Triggered . | . . . . . . . . . . . . . . Machines | -11 -10 -10 -9 -8 -8 -7 -7 -7 -6 -6 -6 -5 -5 ---------- Run | Scr Mat Min Mat Mat Sto Fac Was Fac Fac Was Fac Fac Ext Machines Disabled 58 | . . . . 1 3 4 . . . . 26 18 6 Max in Single Turn 5 | . . . . 1 1 3 . . . . . 5 1 Garrison Access 1 | . . . . . 1 . . . . . . . . Energy Cycler 1 | . . . . . . . . . . . . . 1 Machines Sabotaged . | . . . . . . . . . . . . . . Garrisons Compromised . | . . . . . . . . . . . . . . Overloaded Fab Kills . | . . . . . . . . . . . . . . Fab Network Shutdowns . | . . . . . . . . . . . . . . Hacking | -11 -10 -10 -9 -8 -8 -7 -7 -7 -6 -6 -6 -5 -5 --------- Run | Scr Mat Min Mat Mat Sto Fac Was Fac Fac Was Fac Fac Ext Machines Accessed 28 | . 2 . 2 3 7 . . 1 5 . 2 2 4 Terminals 25 | . 2 . 2 3 6 . . 1 4 . 1 2 4 Fabricators 1 | . . . . . . . . . . . 1 . . Repair Stations . | . . . . . . . . . . . . . . Recycling Units 1 | . . . . . . . . . 1 . . . . Scanalyzers . | . . . . . . . . . . . . . . Garrison Access 1 | . . . . . 1 . . . . . . . . Total Hacks 91 | . 11 . 5 10 21 . . 3 18 . 5 10 8 Successful 42 | . 5 . 3 5 12 . . . 8 . 2 5 2 Failed 49 | . 6 . 2 5 9 . . 3 10 . 3 5 6 Catastrophic 10 | . 1 . . 1 1 . . 2 1 . . 1 3 Database Lockouts . | . . . . . . . . . . . . . . Manual 37 | . 10 . 1 5 5 . . . 5 . 1 10 . Terminals 84 | . 11 . 5 10 18 . . 3 17 . 2 10 8 Fabricators 3 | . . . . . . . . . . . 3 . . Repair Stations . | . . . . . . . . . . . . . . Recycling Units 1 | . . . . . . . . . 1 . . . . Scanalyzers . | . . . . . . . . . . . . . . Garrison Access 3 | . . . . . 3 . . . . . . . . Terminal Hacks 27 | . 3 . 2 5 8 . . . 5 . . 2 2 Part Schematic 2 | . 1 . . 1 . . . . . . . . . Robot Analysis 2 | . 1 . . . 1 . . . . . . . . Prototype ID Bank 4 | . . . . 3 1 . . . . . . . . Open Door 3 | . . . . . 2 . . . . . . . 1 Level Access Points 1 | . . . . . . . . . 1 . . . . Branch Access Points 3 | . . . . . 1 . . . 1 . . 1 . Terminal Index 1 | . . . . . . . . . 1 . . . . Unreport Threat 2 | . 1 . . . . . . . . . . 1 . Locate Traps 3 | . . . 1 . 1 . . . 1 . . . . Registered Components 2 | . . . . 1 1 . . . . . . . . Zone Layout 4 | . . . 1 . 1 . . . 1 . . . 1 Fabricator Hacks 2 | . . . . . . . . . . . 2 . . Load Schematic 1 | . . . . . . . . . . . 1 . . Build 1 | . . . . . . . . . . . 1 . . Repair Station Hacks . | . . . . . . . . . . . . . . Recycling Unit Hacks 1 | . . . . . . . . . 1 . . . . Retrieve Matter 1 | . . . . . . . . . 1 . . . . Scanalyzer . | . . . . . . . . . . . . . . Garrison Access Hacks 1 | . . . . . 1 . . . . . . . . Seal Access 1 | . . . . . 1 . . . . . . . . Unauthorized Hacks 11 | . 2 . 1 . 3 . . . 2 . . 3 . Terminals 11 | . 2 . 1 . 3 . . . 2 . . 3 . Track 3 | . . . . . 1 . . . 1 . . 1 . Botnet 6 | . 2 . 1 . 1 . . . . . . 2 . Disrupt 1 | . . . . . . . . . 1 . . . . Operators 1 | . . . . . 1 . . . . . . . . Fabricators . | . . . . . . . . . . . . . . Repair Stations . | . . . . . . . . . . . . . . Recycling Units . | . . . . . . . . . . . . . . Scanalyzers . | . . . . . . . . . . . . . . Garrison Access . | . . . . . . . . . . . . . . Data Cores Recovered 1 | . . . . . 1 . . . . . . . . Used . | . . . . . . . . . . . . . . Hacking Detections 25 | . 2 . 2 3 6 . . 1 4 . 2 2 3 Full Trace Events 7 | . 1 . . 1 . . . 1 . . 1 1 2 Feedback Events 2 | . . . . . . . . 1 . . 1 . . Corruption 2 | . . . . . . . . 1 . . 1 . . Feedback Blocked . | . . . . . . . . . . . . . . Robot Schematics Acquired . | . . . . . . . . . . . . . . Robots Built . | . . . . . . . . . . . . . . Matter . | . . . . . . . . . . . . . . Time . | . . . . . . . . . . . . . . Total Robot Build Rating . | . . . . . . . . . . . . . . Part Schematics Acquired 2 | . 1 . . 1 . . . . . . . . . Parts Built 1 | . . . . . . . . . . . 1 . . Matter 102 | . . . . . . . . . . . 102 . . Time 25 | . . . . . . . . . . . 25 . . Total Part Build Rating 1 | . . . . . . . . . . . 1 . . Parts Repaired . | . . . . . . . . . . . . . . Time . | . . . . . . . . . . . . . . Parts Recycled . | . . . . . . . . . . . . . . Recycled Matter . | . . . . . . . . . . . . . . Retrieved Matter . | . . . . . . . . . . . . . . Retrieved Components . | . . . . . . . . . . . . . . Parts Scanalyzed . | . . . . . . . . . . . . . . Part Schematics Acquired . | . . . . . . . . . . . . . . Parts Damaged . | . . . . . . . . . . . . . . Bothacking | -11 -10 -10 -9 -8 -8 -7 -7 -7 -6 -6 -6 -5 -5 ------------ Run | Scr Mat Min Mat Mat Sto Fac Was Fac Fac Was Fac Fac Ext Used RIF Installer . | . . . . . . . . . . . . . . Robots Hacked 1 | . . . . . . . . . . . . . 1 Non-combat . | . . . . . . . . . . . . . . Combat 1 | . . . . . . . . . . . . . 1 Robot Hacks Applied 1 | . . . . . . . . . . . . . 1 parse_system 1 | . . . . . . . . . . . . . 1 Relay Couplers Released . | . . . . . . . . . . . . . . Robots Rewired 4 | . . . . . . . . . . . . . 4 Allies Hacked . | . . . . . . . . . . . . . . Hacks Repelled . | . . . . . . . . . . . . . . Allies | -11 -10 -10 -9 -8 -8 -7 -7 -7 -6 -6 -6 -5 -5 -------- Run | Scr Mat Min Mat Mat Sto Fac Was Fac Fac Was Fac Fac Ext Total Allies 27 | . . . . . 2 . . . . 19 . . 6 Largest Group 19 | . . . . . 2 . . . . 19 11 9 4 Highest-Rated Group 714 | . . . . . 62 . . . . 714 459 388 156 Highest-Rated Ally 156 | . . . . . 31 . . . . 50 50 50 156 Total Orders . | . . . . . . . . . . . . . . Ally Attacks 257 | . . . . . 16 . . . . 97 58 65 21 Total Damage 11772 | . . . . . 296 . . . . 6109 2668 1663 1036 Kills 58 | . . . . . 2 . . . . 14 19 16 7 Allies Corrupted . | . . . . . . . . . . . . . . Allies Melted . | . . . . . . . . . . . . . . Intel | -11 -10 -10 -9 -8 -8 -7 -7 -7 -6 -6 -6 -5 -5 ------- Run | Scr Mat Min Mat Mat Sto Fac Was Fac Fac Was Fac Fac Ext Robot Analysis Total 2 | . 1 . . . 1 . . . . . . . . Derelict Logs Recovered 2 | . . 2 . . . . . . . . . . . Drone Launches . | . . . . . . . . . . . . . . Drone Recoveries . | . . . . . . . . . . . . . . Exploration | -11 -10 -10 -9 -8 -8 -7 -7 -7 -6 -6 -6 -5 -5 ------------- Run | Scr Mat Min Mat Mat Sto Fac Was Fac Fac Was Fac Fac Ext Turns Passed 8393 | 67 198 208 398 514 1298 217 125 144 826 821 767 1849 961 Spaces Moved 4554 | 49 105 117 230 247 578 103 102 265 382 767 454 783 372 Core 667 | 3 . . . . . . 69 265 21 307 . 2 . Treads 522 | . . . . . 179 103 33 . 138 . . 58 11 Legs 3067 | 46 105 117 230 247 399 . . . 223 460 454 673 113 Wheels 296 | . . . . . . . . . . . . 48 248 Hover 2 | . . . . . . . . . . . . 2 . Flight . | . . . . . . . . . . . . . . Fastest Speed 50 | 50 120 150 120 150 150 180 50 50 50 50 120 150 113 Average Speed 140 | 115 142 150 131 163 177 194 98 50 149 95 145 168 154 Slowest Speed 1950 | 120 150 150 150 180 330 200 200 50 210 150 150 1950 270 Overloaded Moves . | . . . . . . . . . . . . . . Propulsion Burnouts . | . . . . . . . . . . . . . . Robots Hopped . | . . . . . . . . . . . . . . Cave-ins Triggered . | . . . . . . . . . . . . . . Exploration Rate (%) 32 | 5 26 35 24 23 70 3 80 7 14 96 16 25 31 Regions Visited 13 Branch Regions 3 Pre-discovered Areas . | . . . . . . . . . . . . . . Known Exits Taken 3 | . . 1 . . . . . . . . 1 1 . Unknown Exits Taken 6 | 1 1 . 1 1 1 . . 1 . . . . . Scrap Searched 1 | . . 1 . . . . . . . . . . . Spaces Dug 2 | . . . . . . . . . . 2 . . . Terrain Destroyed 318 | . . . . 10 . 28 . . 2 5 2 245 26 Melee . | . . . . . . . . . . . . . . Projectile 105 | . . . . 5 . . . . 2 5 2 72 19 AOE 213 | . . . . 5 . 28 . . . . . 173 7 Terrain Rammed . | . . . . . . . . . . . . . . Walls Destroyed . | . . . . . . . . . . . . . . Machines Disabled . | . . . . . . . . . . . . . . Actions | -11 -10 -10 -9 -8 -8 -7 -7 -7 -6 -6 -6 -5 -5 --------- Run | Scr Mat Min Mat Mat Sto Fac Was Fac Fac Was Fac Fac Ext Total 5705 | 56 133 133 282 318 727 117 110 274 518 838 537 1052 610 Wait 217 | . 6 2 12 11 20 . . . 28 27 26 24 61 Move 4543 | 48 104 116 229 246 577 103 101 264 382 766 453 782 372 Hop . | . . . . . . . . . . . . . . Pick Up 141 | 2 7 1 9 11 14 3 . 2 12 18 16 27 19 Fast Attach 90 | 6 3 . 2 5 14 2 2 5 9 13 . 15 14 Attach 53 | . 1 . 3 5 2 2 . 1 8 3 . 21 7 Detach 6 | . 1 . . . 1 1 . . . 1 . . 2 Swap 54 | . . 4 3 1 8 . . . 5 . 7 18 8 Drop 88 | . 1 2 3 11 24 3 . 2 4 4 17 8 9 Fire 449 | . 10 8 21 28 63 3 7 . 66 6 16 149 72 Melee . | . . . . . . . . . . . . . . Ram . | . . . . . . . . . . . . . . Kick 11 | . . . . . . . . . 2 . 2 7 . Crush 7 | . . . . . 4 . . . 2 . . 1 . Escape Stasis 8 | . . . . . . . . . . . . . 8 Rewire 38 | . . . . . . . . . . . . . 38 Trap . | . . . . . . . . . . . . . . Miscellaneous . | . . . . . . . . . . . . . . Route ------- -11/Scrapyard -10/Materials -10/Mines (discovered 2 exits: *Mat x2) -9/Materials -8/Materials -8/Storage (discovered 2 exits: [*Fac] / Rec) -7/Factory -7/Waste -7/Factory -6/Factory (discovered 6 exits: Fac x4 / Low x2) -6/Waste -6/Factory -5/Factory (discovered 5 exits: [*Fac] / Upp x2 / *Ext x2) -5/Extension History --------- Turn | Location | Event 7 | -11/Scrapyard | Discovered new exit (range 15) 68 | -11/Scrapyard | Entered Materials 238 | -10/Materials | Discovered new exit (range 7) 266 | -10/Materials | Entered Mines 324 | -10/Mines | Build established: Mutant 340 | -10/Mines | Met a Derelict bent on vengeance 347 | -10/Mines | Learned Materials garrison access intel 350 | -10/Mines | Identified exit to Materials 466 | -10/Mines | Discovered exit to Materials (range 6) 474 | -10/Mines | Entered Materials 474 | -9/Materials | Evolved 2 slots: Propulsion x1, Utility x1 778 | -9/Materials | Discovered new exit (range 3) 872 | -9/Materials | Entered another Materials area 872 | -8/Materials | Evolved 2 slots: Utility x2 873 | -8/Materials | Loaded intel: 1 garrison access location 876 | -8/Materials | Build established: Scavenger-Mutant 878 | -8/Materials | Discovered new exit (range 15) 1377 | -8/Materials | Build established: Mutant 1386 | -8/Materials | Entered Storage 1833 | -8/Storage | Garrison activated, responded to threat 1871 | -8/Storage | Identified exit to Recycling 1978 | -8/Storage | Discovered new exit (range 12) 2086 | -8/Storage | Met a pair of Derelict thieves 2193 | -8/Storage | Destroyed 9 combat bots 2343 | -8/Storage | Build established: Hauler-Mutant 2684 | -8/Storage | Entered Factory 2684 | -7/Factory | Evolved 2 slots: Propulsion x1, Utility x1 2901 | -7/Factory | Sucked down chute 2901 | -7/Factory | Entered Waste 2916 | -7/Waste | EMP discharged 2916 | -7/Waste | System corruption reached 10% 2941 | -7/Waste | Spotted C-40 Crusher 2943 | -7/Waste | Spotted C-40 Crusher 2955 | -7/Waste | Spotted C-40 Crusher 2977 | -7/Waste | Crushed by Compactor (1 part destroyed, 1 dropped) 2980 | -7/Waste | Crushed by Compactor (1 part destroyed, 2 dropped) 2981 | -7/Waste | Destroyed C-40 Crusher 2987 | -7/Waste | Crushed by Compactor (1 part destroyed, 1 dropped) 2990 | -7/Waste | Released all parts (4) 3001 | -7/Waste | Spotted C-40 Crusher 3006 | -7/Waste | Spotted C-40 Crusher 3016 | -7/Waste | EMP discharged 3017 | -7/Waste | Spotted C-40 Crusher 3017 | -7/Waste | Discovered new exit (range 16) 3018 | -7/Waste | Lost 3 parts (2u1w) 3026 | -7/Waste | Entered Factory 3163 | -7/Factory | Discovered new exit (range 4) 3170 | -7/Factory | Entered another Factory area 3170 | -6/Factory | Evolved 2 slots: Utility x2 3281 | -6/Factory | Build established: Mutant 3284 | -6/Factory | Identified exit to Lower Caves 3678 | -6/Factory | Build established: Scavenger-Mutant 3842 | -6/Factory | Lost 6 parts (1p1n1u3w) 3856 | -6/Factory | Identified exit to Factory 3996 | -6/Factory | Sucked down chute 3996 | -6/Factory | Entered Waste 4001 | -6/Waste | Spotted C-40 Crusher 4074 | -6/Waste | Released all parts (13) 4087 | -6/Waste | Spotted C-40 Crusher 4089 | -6/Waste | Spotted C-40 Crusher 4089 | -6/Waste | Spotted C-40 Crusher 4095 | -6/Waste | Spotted C-40 Crusher 4111 | -6/Waste | Spotted C-40 Crusher 4140 | -6/Waste | Discovered new exit (range 15) 4174 | -6/Waste | Warlord forces began an assault 4199 | -6/Waste | Allies destroyed C-40 Crusher 4203 | -6/Waste | Allies destroyed C-40 Crusher 4211 | -6/Waste | Allies destroyed C-40 Crusher 4212 | -6/Waste | Allies destroyed C-40 Crusher 4214 | -6/Waste | Allies destroyed C-40 Crusher 4817 | -6/Waste | Entered Factory 4817 | -6/Factory | Accompanied by 11 allies 4932 | -6/Factory | Spotted B-75 Beast 4938 | -6/Factory | Allies destroyed B-75 Beast 5003 | -6/Factory | Fabricated Hcp. Storage Unit (x1) 5559 | -6/Factory | Discovered exit to Factory (range 13) 5584 | -6/Factory | Entered another Factory area 5584 | -5/Factory | Accompanied by 9 allies 5584 | -5/Factory | Evolved 2 slots: Utility x2 5884 | -5/Factory | First assault squad dispatched 6191 | -5/Factory | Lost 6 parts (1n3u2w) 6494 | -5/Factory | Spotted B-75 Beast 6513 | -5/Factory | Identified exit to Upper Caves 6513 | -5/Factory | Identified exit to Extension 6652 | -5/Factory | Lost 3 parts (1p1u1w) 6803 | -5/Factory | Lost 8 parts (1p1n4u2w) 6908 | -5/Factory | Garrison activated, responded to threat 6974 | -5/Factory | Lost 4 parts (1p3n) 7028 | -5/Factory | Lost 4 parts (2n2w) 7040 | -5/Factory | Destroyed 7 combat bots 7083 | -5/Factory | Core integrity fell below 50% 7186 | -5/Factory | Lost 10 parts (2p2n3u3w) 7238 | -5/Factory | Build established: Hauler-Mutant 7304 | -5/Factory | System corruption reached 10% 7334 | -5/Factory | Lost 5 parts (3n1u1w) 7352 | -5/Factory | Discovered new exit (range 15) 7433 | -5/Factory | Entered Extension 7505 | -5/Extension | Core integrity fell below 20% 7662 | -5/Extension | Rescued a captive Derelict 7729 | -5/Extension | Lost 3 parts (2n1u) 7951 | -5/Extension | Rescued A7 7963 | -5/Extension | Energy Cycler disabled 7964 | -5/Extension | Rescued a captive Derelict 7964 | -5/Extension | Rescued a captive Derelict 7966 | -5/Extension | Rescued a captive Derelict 7967 | -5/Extension | Rescued a captive Derelict 7967 | -5/Extension | Rescued a captive Derelict 7973 | -5/Extension | Rescued a captive Derelict 7975 | -5/Extension | Rescued a captive Derelict 7987 | -5/Extension | Rescued a captive Derelict 8018 | -5/Extension | Build established: Scavenger-Mutant 8116 | -5/Extension | Destroyed A7 8119 | -5/Extension | Extracted ID and sensor layout for unrecognized location from A7's data core 8214 | -5/Extension | Lost 4 parts (2n1u1w) 8333 | -5/Extension | First assault squad dispatched 8394 | -5/Extension | Destroyed by Y-64 Sentinel with KE Penetrator Last Messages --------------- 08381_ Slug penetrates Y-64 Sentinel. 08381_ Y-64 Sentinel suffers critical hit. 08381_ Destroyed KE Penetrator. 08382_ Slug penetrates Wall. 08382_ Neutron Cannon destroyed. 08383_ Penetrated by Slug. 08385_ Slug penetrates Wall. 08386_ Penetrated by Slug. 08387_ L4BAOI0WYVIR2QY/